[Event "Turkey IS Bank Super League 2017"]
[Site "Darica-Kocaeli"]
[Date "2017.07.27"]
[Round "2.16"]
[White "Yurdakul, Didem Nuray"]
[Black "Sade, Defne"]
[Result "1-0"]
[ECO "C54"]
[WhiteElo "1697"]
[BlackElo "1654"]
[Annotator "NA"]
[PlyCount "67"]
[EventType "team-tourn"]
[EventCountry "TUR"]
[SourceTitle "playchess.com"]
[Source "ChessBase"]
[SourceQuality "1"]
[TimeControl "40/5400+30:1800+30"]

1. e4 {[%emt 0:00:30]} e5 {[%emt 0:01:00]} 2. Nf3 {[%emt 0:00:30]} Nc6 {[%emt 0:00:30]} 3. d4 {[%emt 0:00:30]} exd4 {[%emt 0:00:30]} 4. Bc4 {[%emt 0:00:30]} Bc5 {[%emt 0:00:30]} 5. c3 {[%emt 0:00:30]} Nf6 {[%emt 0:00:30]} 6. e5 {[%emt 0:00:00]} d5 {[%emt 0:00:00]} 7. Bb5 {[%emt 0:00:00]} Ne4 {[%emt 0:00:00]} 8. cxd4 {[%emt 0:00:00]} Bb4+ {[%emt 0:00:00]} 9. Bd2 {[%emt 0:00:00]} Nxd2 {[%emt 0:00:00]} 10. Nbxd2 {[%emt 0:00:00]} Bd7 {[%emt 0:00:00]} 11. Bxc6 {[%emt 0:06:00]} Bxc6 {[%emt 0:00:00]} 12. O-O {[%emt 0:00:30]} O-O {[%emt 0:00:00]} 13. a3 {[%emt 0:04:30]} Be7 {[%emt 0:00:00]} 14. Re1 {[%emt 0:03:30]} Qd7 {[%emt 0:07:30] [%clk 1:26]} 15. Qb3 {[%emt 0:10:30]} Rae8 {[%emt 0:01:30]} 16. Rac1 {[%emt 0:00:30]} Kh8 {[%emt 0:07:30]} 17. Qc3 {[%emt 0:01:30]} Qe6 {[%emt 0:04:30]} 18. Nb3 {[%emt 0:04:30]} f5 {[%emt 0:11:30]} 19. Na5 {[%emt 0:06:30]} Rb8 {[%emt 0:28:30]} 20. Nxc6 {[%emt 0:03:30]} bxc6 {[%emt 0:00:30]} 21. Qxc6 {[%emt 0:00:30]} Qxc6 {[%emt 0:00:30]} 22. Rxc6 {[%emt 0:00:00]} Rb7 {[%emt 0:07:30]} 23. Rec1 {[%emt 0:03:00]} Rfb8 {[%emt 0:03:30]} 24. Rxc7 {[%emt 0:03:30]} Rxc7 {[%emt 0:00:30]} 25. Rxc7 {[%emt 0:00:00]} Bxa3 {[%emt 0:00:30]} 26. Rxa7 {[%emt 0:02:00]} Bxb2 {[%emt 0:02:30]} 27. g3 {[%emt 0:01:30]} g5 {[%emt 0:01:30]} 28. Nxg5 {[%emt 0:05:30]} Bxd4 {[%emt 0:00:00]} 29. Rxh7+ {[%emt 0:00:30]} Kg8 {[%emt 0:00:00]} 30. Rd7 {[%emt 0:03:30]} Rb2 {[%emt 0:06:56]} 31. Rd8+ {[%emt 0:00:30]} Kg7 {[%emt 0:01:47]} 32. Ne6+ {[%emt 0:00:00]} Kf7 {[%emt 0:01:18]} 33. Nxd4 {[%emt 0:00:00]} Rb1+ {[%emt 0:00:35]} 34. Kg2 {[%emt 0:00:30]} 1-0

[Event "Turkey IS Bank Super League 2017"]
[Site "Darica-Kocaeli"]
[Date "2017.07.27"]
[Round "2.20"]
[White "Soylu, Suat"]
[Black "Karagollu, Ahmet"]
[Result "1/2-1/2"]
[ECO "C68"]
[WhiteElo "2348"]
[BlackElo "2083"]
[Annotator "NA"]
[PlyCount "68"]
[EventType "team-tourn"]
[EventCountry "TUR"]
[SourceTitle "playchess.com"]
[Source "ChessBase"]
[SourceQuality "1"]
[TimeControl "40/5400+30:1800+30"]

1. e4 {[%emt 0:00:30]} Nc6 {[%emt 0:01:00]} 2. Nf3 {[%emt 0:00:30]} e5 {[%emt 0:01:30]} 3. Bb5 {[%emt 0:00:30]} a6 {[%emt 0:00:00]} 4. Bxc6 {[%emt 0:00:30]} dxc6 {[%emt 0:00:00]} 5. O-O {[%emt 0:00:00]} Bg4 {[%emt 0:00:30]} 6. h3 {[%emt 0:00:00]} h5 {[%emt 0:00:30]} 7. d3 {[%emt 0:00:30]} Qf6 {[%emt 0:01:30]} 8. Be3 {[%emt 0:00:00]} Bxf3 {[%emt 0:03:30]} 9. Qxf3 {[%emt 0:00:00]} Qxf3 {[%emt 0:00:30]} 10. gxf3 {[%emt 0:00:30]} Bd6 {[%emt 0:00:30]} 11. Nd2 {[%emt 0:00:30]} Ne7 {[%emt 0:00:30]} 12. Rfb1 {[%emt 0:00:30] [%clk 1:31]} f6 {[%emt 0:23:30]} 13. b4 {[%emt 0:01:30]} Kf7 {[%emt 0:09:30]} 14. Kf1 {[%emt 0:02:30]} Ng6 {[%emt 0:01:30]} 15. Ke2 {[%emt 0:03:30]} Nf8 {[%emt 0:09:30]} 16. c3 {[%emt 0:06:30]} Ne6 {[%emt 0:00:30]} 17. a4 {[%emt 0:08:30]} Rhd8 {[%emt 0:02:30]} 18. Nb3 {[%emt 0:05:30]} b6 {[%emt 0:11:30]} 19. Ra2 {[%emt 0:07:30]} c5 {[%emt 0:05:30]} 20. bxc5 {[%emt 0:05:30]} Bxc5 {[%emt 0:00:30]} 21. Nxc5 {[%emt 0:01:30]} bxc5 {[%emt 0:00:30]} 22. Rab2 {[%emt 0:04:30]} Rd6 {[%emt 0:02:30]} 23. Rb8 {[%emt 0:24:30]} Rxb8 {[%emt 0:00:30]} 24. Rxb8 {[%emt 0:00:00]} Rb6 {[%emt 0:00:30]} 25. Ra8 {[%emt 0:00:00]} Kg6 {[%emt 0:02:30]} 26. a5 {[%emt 0:01:30]} Rd6 {[%emt 0:00:00]} 27. Rb8 {[%emt 0:05:30]} Kf7 {[%emt 0:02:00]} 28. Rb1 {[%emt 0:01:30]} Ke7 {[%emt 0:01:47]} 29. Rb8 {[%emt 0:02:20]} Rd8 {[%emt 0:01:03]} 30. Rb7 {[%emt 0:01:07]} Ra8 {[%emt 0:01:01]} 31. Rb1 {[%emt 0:05:15]} Kd6 {[%emt 0:01:59]} 32. Kd2 {[%emt 0:01:47]} Kc6 {[%emt 0:00:34]} 33. Kc2 {[%emt 0:00:00]} Rf8 {[%emt 0:01:09]} 34. Kd2 {[%emt 0:01:12]} Re8 {[%emt 0:02:21]} 1/2-1/2

[Event "Turkey IS Bank Super League 2017"]
[Site "Darica-Kocaeli"]
[Date "2017.07.27"]
[Round "2.21"]
[White "Karavade, Eesha"]
[Black "Mammadova, Gulnar"]
[Result "1/2-1/2"]
[ECO "D10"]
[WhiteElo "2397"]
[BlackElo "2357"]
[Annotator "NA"]
[PlyCount "67"]
[EventType "team-tourn"]
[EventCountry "TUR"]
[SourceTitle "playchess.com"]
[Source "ChessBase"]
[SourceQuality "1"]
[TimeControl "40/5400+30:1800+30"]

1. d4 {[%emt 0:00:30]} d5 {[%emt 0:01:00]} 2. c4 {[%emt 0:01:30]} c6 {[%emt 0:00:30]} 3. cxd5 {[%emt 0:00:00]} cxd5 {[%emt 0:00:30]} 4. Bf4 {[%emt 0:00:00]} Nc6 {[%emt 0:00:30]} 5. e3 {[%emt 0:00:30]} Nf6 {[%emt 0:00:30]} 6. Nc3 {[%emt 0:00:30]} Bf5 {[%emt 0:00:30]} 7. Qb3 {[%emt 0:00:00]} Na5 {[%emt 0:00:00]} 8. Qa4+ {[%emt 0:00:00]} Bd7 {[%emt 0:00:00]} 9. Qc2 {[%emt 0:00:30]} e6 {[%emt 0:00:30]} 10. Bd3 {[%emt 0:00:30]} Be7 {[%emt 0:00:30]} 11. Nf3 {[%emt 0:00:00]} Rc8 {[%emt 0:01:30]} 12. O-O {[%emt 0:00:00] LiveBook: 48 Games} O-O {[%emt 0:00:30]} 13. Ne5 {[%emt 0:03:30]} a6 {[%emt 0:03:30]} 14. Rac1 {[%emt 0:03:30]} Bb5 $11 {[%emt 0:02:30] [%clk 1:25]} 15. Bxb5 {[%emt 0:16:30]} axb5 {[%emt 0:00:30]} 16. Qe2 {[%emt 0:00:30]} b4 {[%emt 0:00:30]} 17. Na4 {[%emt 0:01:30]} Nc4 {[%emt 0:04:30]} 18. b3 {[%emt 0:15:30]} Nxe5 {[%emt 0:09:30]} 19. Bxe5 {[%emt 0:01:30]} Qa5 {[%emt 0:02:30]} 20. Bxf6 {[%emt 0:00:30]} Bxf6 {[%emt 0:08:30]} 21. Qd2 {[%emt 0:08:30]} Be7 {[%emt 0:06:30]} 22. Rxc8 {[%emt 0:10:30]} Rxc8 {[%emt 0:00:30]} 23. Rc1 {[%emt 0:00:30]} Rc7 {[%emt 0:01:30]} 24. Rc2 {[%emt 0:03:30]} g6 {[%emt 0:02:30]} 25. g3 {[%emt 0:02:30]} Bd6 {[%emt 0:04:30]} 26. Qc1 {[%emt 0:03:30]} Kf8 {[%emt 0:07:30]} 27. Rxc7 {[%emt 0:01:30]} Qxc7 {[%emt 0:01:30]} 28. Qxc7 {[%emt 0:00:30]} Bxc7 {[%emt 0:00:00]} 29. Nc5 {[%emt 0:00:30]} b6 {[%emt 0:00:00]} 30. Nd3 {[%emt 0:00:30]} Bd6 {[%emt 0:00:30]} 31. Kg2 {[%emt 0:01:30]} f6 {[%emt 0:01:30]} 32. f3 {[%emt 0:01:30]} Kf7 {[%emt 0:07:30]} 33. e4 {[%emt 0:01:30]} f5 {[%emt 0:02:30]} 34. e5 {[%emt 0:01:30]} 1/2-1/2

[Event "Turkey IS Bank Super League 2017"]
[Site "Darica-Kocaeli"]
[Date "2017.07.27"]
[Round "2.22"]
[White "Agdelen, Huseyin Can"]
[Black "Samani, Yamac"]
[Result "1/2-1/2"]
[ECO "B00"]
[WhiteElo "2309"]
[BlackElo "2263"]
[Annotator "NA"]
[PlyCount "60"]
[EventType "team-tourn"]
[EventCountry "TUR"]
[SourceTitle "playchess.com"]
[Source "ChessBase"]
[SourceQuality "1"]
[TimeControl "40/5400+30:1800+30"]

1. e4 {[%emt 0:00:30]} b6 {[%emt 0:02:00]} 2. d4 {[%emt 0:00:30]} Bb7 {[%emt 0:00:30]} 3. Nd2 {[%emt 0:00:30]} e6 {[%emt 0:00:30]} 4. Ngf3 {[%emt 0:01:30]} c5 {[%emt 0:00:30]} 5. c3 {[%emt 0:00:30]} Nf6 {[%emt 0:01:30]} 6. Bd3 {[%emt 0:00:30]} cxd4 {[%emt 0:00:30]} 7. cxd4 {[%emt 0:00:30]} Ba6 {[%emt 0:00:30]} 8. Bxa6 {[%emt 0:00:30]} Nxa6 {[%emt 0:00:30]} 9. O-O {[%emt 0:00:30]} Be7 {[%emt 0:00:30]} 10. Qe2 {[%emt 0:00:30]} Nc7 {[%emt 0:01:30]} 11. b3 {[%emt 0:01:30]} d5 {[%emt 0:01:30]} 12. e5 {[%emt 0:01:30]} Nd7 {[%emt 0:02:30]} 13. Bb2 {[%emt 0:00:30]} Qc8 {[%emt 0:00:30]} 14. Rfc1 {[%emt 0:00:30]} Qb7 {[%emt 0:00:30]} 15. Rc3 {[%emt 0:00:30]} O-O {[%emt 0:00:30]} 16. a3 {[%emt 0:01:30]} Rfc8 {[%emt 0:01:30]} 17. Rac1 {[%emt 0:00:30]} Na6 $11 {[%emt 0:03:30] [%clk 1:19]} 18. Rxc8+ {[%emt 0:04:30]} Rxc8 {[%emt 0:01:30]} 19. Rxc8+ {[%emt 0:00:30]} Qxc8 {[%emt 0:00:30]} 20. Qd3 {[%emt 0:00:30]} Qb7 {[%emt 0:00:30]} 21. Qc2 {[%emt 0:00:30]} g6 {[%emt 0:00:30]} 22. Ne1 {[%emt 0:00:30]} Nc7 {[%emt 0:00:30]} 23. Nd3 {[%emt 0:00:30]} a5 {[%emt 0:00:30]} 24. Kf1 {[%emt 0:01:30]} Kf8 {[%emt 0:00:30]} 25. Ke2 {[%emt 0:00:30]} Ke8 {[%emt 0:00:30]} 26. Kd1 {[%emt 0:00:00]} Kd8 {[%emt 0:00:30]} 27. Kc1 {[%emt 0:00:00]} Kc8 {[%emt 0:00:30]} 28. Kb1 {[%emt 0:00:30]} Kb8 {[%emt 0:00:30]} 29. Ka2 {[%emt 0:00:30]} Bf8 {[%emt 0:00:30]} 30. g3 {[%emt 0:00:30]} Ka7 {[%emt 0:00:00]} 1/2-1/2

[Event "Turkey IS Bank Super League 2017"]
[Site "Darica-Kocaeli"]
[Date "2017.07.27"]
[Round "2.23"]
[White "Tarlabasi, Emirhan"]
[Black "Tasdogen, Dincer"]
[Result "1-0"]
[ECO "B00"]
[WhiteElo "2046"]
[BlackElo "2215"]
[Annotator "NA"]
[PlyCount "69"]
[EventType "team-tourn"]
[EventCountry "TUR"]
[SourceTitle "playchess.com"]
[Source "ChessBase"]
[SourceQuality "1"]
[TimeControl "40/5400+30:1800+30"]

1. d4 {[%emt 0:00:30]} d6 {[%emt 0:01:00]} 2. e4 {[%emt 0:00:30]} Nc6 {[%emt 0:02:30]} 3. Be3 {[%emt 0:08:30]} g6 {[%emt 0:15:30] [%clk 1:12]} 4. d5 {[%emt 0:09:30]} Nb8 {[%emt 0:11:30]} 5. c4 {[%emt 0:01:30]} Bg7 {[%emt 0:02:30]} 6. Nc3 {[%emt 0:05:30]} c6 {[%emt 0:12:30]} 7. f3 {[%emt 0:08:30]} Nd7 {[%emt 0:07:30]} 8. Nge2 {[%emt 0:02:30]} h5 {[%emt 0:10:30]} 9. Nc1 {[%emt 0:06:30]} c5 {[%emt 0:06:30]} 10. Nd3 {[%emt 0:08:30]} Rb8 {[%emt 0:08:42]} 11. Be2 {[%emt 0:08:30]} a6 {[%emt 0:13:53]} 12. a4 {[%emt 0:06:30]} Bh6 {[%emt 0:01:36]} 13. Bxh6 {[%emt 0:02:30]} Nxh6 {[%emt 0:00:38]} 14. Qd2 {[%emt 0:00:00]} Ne5 {[%emt 0:02:01]} 15. Nf2 {[%emt 0:07:00]} Kf8 {[%emt 0:00:36]} 16. h3 {[%emt 0:00:30]} f6 {[%emt 0:00:29]} 17. f4 {[%emt 0:01:54]} Nef7 {[%emt 0:00:01]} 18. Nd3 {[%emt 0:02:22]} h4 {[%emt 0:00:56]} 19. Rf1 {[%emt 0:05:32]} Rg8 {[%emt 0:00:33]} 20. O-O-O {[%emt 0:03:50]} Qa5 {[%emt 0:00:31]} 21. b3 {[%emt 0:03:13]} Kg7 {[%emt 0:00:29]} 22. Kc2 {[%emt 0:04:32]} Bd7 {[%emt 0:00:28]} 23. Ra1 {[%emt 0:00:24]} Qc7 {[%emt 0:00:25]} 24. Ne1 {[%emt 0:01:24]} f5 {[%emt 0:00:34]} 25. Nf3 {[%emt 0:00:38]} fxe4 {[%emt 0:00:26]} 26. Nxh4 {[%emt 0:01:21]} Nf5 {[%emt 0:00:30]} 27. Nxf5+ {[%emt 0:00:30]} gxf5 {[%emt 0:00:00]} 28. g4 {[%emt 0:00:14]} Nh6 {[%emt 0:01:06]} 29. g5 {[%emt 0:00:43]} Nf7 {[%emt 0:00:04]} 30. h4 {[%emt 0:00:25]} e5 {[%emt 0:01:16]} 31. h5 {[%emt 0:00:37]} exf4 {[%emt 0:00:06]} 32. Qxf4 {[%emt 0:01:00]} Ne5 {[%emt 0:00:28]} 33. Nxe4 {[%emt 0:00:13]} fxe4 {[%emt 0:00:30]} 34. Qf6+ {[%emt 0:00:30]} Kh7 {[%emt 0:00:30]} 35. Qh6# {[%emt 0:00:07]} 1-0

[Event "Turkey IS Bank Super League 2017"]
[Site "Darica-Kocaeli"]
[Date "2017.07.27"]
[Round "2.24"]
[White "Celik, Eda"]
[Black "Yassibag, Ipek Asli"]
[Result "0-1"]
[ECO "B01"]
[WhiteElo "1939"]
[BlackElo "1880"]
[Annotator "NA"]
[PlyCount "132"]
[EventType "team-tourn"]
[EventCountry "TUR"]
[SourceTitle "playchess.com"]
[Source "ChessBase"]
[SourceQuality "1"]
[TimeControl "40/5400+30:1800+30"]

1. e4 {[%emt 0:00:30]} d5 {[%emt 0:01:00]} 2. exd5 {[%emt 0:00:30]} Nf6 {[%emt 0:00:30]} 3. d4 {[%emt 0:00:00]} Bg4 {[%emt 0:00:30]} 4. f3 {[%emt 0:00:00]} Bf5 {[%emt 0:00:30]} 5. g4 {[%emt 0:00:00]} Bg6 {[%emt 0:00:30]} 6. c4 {[%emt 0:00:00]} e6 {[%emt 0:06:30]} 7. Nc3 $14 {[%emt 0:00:30]} Qe7 {[%emt 0:20:30] [%clk 1:04]} (7... exd5 $14 8. g5 Nfd7) 8. g5 {[%emt 0:07:30]} Nfd7 {[%emt 0:05:30]} 9. Nge2 {[%emt 0:06:30]} Nb6 {[%emt 0:03:30]} 10. Qb3 {[%emt 0:06:30]} Bd3 {[%emt 0:03:30]} 11. c5 {[%emt 0:09:30]} Bc4 {[%emt 0:06:30]} 12. Qc2 {[%emt 0:06:30]} Bxe2 {[%emt 0:02:30]} 13. Bxe2 {[%emt 0:03:30]} Nxd5 {[%emt 0:00:30]} 14. Qb3 {[%emt 0:13:30]} c6 {[%emt 0:03:30]} 15. Nxd5 {[%emt 0:01:30]} exd5 {[%emt 0:02:30]} 16. Bf4 {[%emt 0:00:30]} Qd7 {[%emt 0:09:30]} 17. h4 {[%emt 0:09:30]} Be7 {[%emt 0:09:30]} 18. Kf2 {[%emt 0:07:30]} O-O {[%emt 0:02:55]} 19. Bd3 {[%emt 0:04:30]} Bd8 {[%emt 0:03:37]} 20. Qc2 {[%emt 0:00:30]} g6 {[%emt 0:03:54]} 21. Be5 {[%emt 0:05:59]} f6 {[%emt 0:01:08]} 22. gxf6 {[%emt 0:02:59]} Bxf6 {[%emt 0:00:08]} 23. Bxf6 {[%emt 0:07:06]} Rxf6 {[%emt 0:00:30]} 24. Rag1 {[%emt 0:00:02]} Na6 {[%emt 0:00:39]} 25. a3 {[%emt 0:01:57]} Raf8 {[%emt 0:01:14]} 26. Rg3 {[%emt 0:00:20]} Qf7 {[%emt 0:01:18]} 27. Rhh3 {[%emt 0:00:30]} Qe6 {[%emt 0:01:45]} 28. Kg2 {[%emt 0:03:00]} R8f7 {[%emt 0:03:37]} 29. h5 {[%emt 0:01:17]} Rg7 {[%emt 0:01:56]} 30. hxg6 {[%emt 0:00:33]} hxg6 {[%emt 0:00:09]} 31. Rh6 {[%emt 0:01:55]} Kf7 {[%emt 0:01:02]} 32. Qd2 {[%emt 0:00:31]} Nc7 {[%emt 0:01:13]} 33. Qg5 {[%emt 0:00:41]} Ne8 {[%emt 0:00:18]} 34. f4 {[%emt 0:00:28]} Qe1 {[%emt 0:02:02]} 35. f5 {[%emt 0:00:30]} Kg8 {[%emt 0:02:24]} 36. fxg6 {[%emt 0:00:37]} Rf2+ {[%emt 0:00:35]} 37. Kh3 {[%emt 0:00:30]} Qh1+ {[%emt 0:00:30]} 38. Kg4 {[%emt 0:00:00]} Qd1+ {[%emt 0:00:26]} 39. Kh3 {[%emt 0:00:25]} Nf6 {[%emt 0:01:00]} 40. Kh4 {[%emt 0:00:36]} Rh2+ {[%emt 0:30:30]} 41. Rh3 {[%emt 0:00:34]} Rxh3+ {[%emt 0:00:00]} 42. Kxh3 {[%emt 0:00:30]} Qxd3+ {[%emt 0:00:00]} 43. Kg2 {[%emt 0:02:30]} Qe2+ {[%emt 0:00:00]} 44. Kg1 {[%emt 0:01:30]} Qg4+ {[%emt 0:00:00]} 45. Qxg4 {[%emt 0:00:30]} Nxg4 {[%emt 0:00:00]} 46. Rh3 {[%emt 0:00:00]} Rxg6 {[%emt 0:00:00]} 47. Rb3 {[%emt 0:00:00]} Rg7 {[%emt 0:00:00]} 48. Kf1 {[%emt 0:00:30]} Nf6 {[%emt 0:00:00]} 49. Ke2 {[%emt 0:00:30]} Ne4 {[%emt 0:00:00]} 50. a4 {[%emt 0:01:30]} Kf8 {[%emt 0:00:00]} 51. a5 {[%emt 0:00:30]} a6 {[%emt 0:00:00]} 52. Rb6 {[%emt 0:00:30]} Ke8 {[%emt 0:00:00]} 53. Kf3 {[%emt 0:00:30]} Nd2+ {[%emt 0:00:00]} 54. Kf4 {[%emt 0:00:30]} Rf7+ {[%emt 0:00:00]} 55. Kg5 {[%emt 0:00:00]} Nc4 {[%emt 0:00:00]} 56. Rb3 {[%emt 0:00:00]} Nxa5 {[%emt 0:00:00]} 57. Re3+ {[%emt 0:00:00]} Re7 {[%emt 0:00:00]} 58. Rh3 {[%emt 0:00:00]} Nc4 {[%emt 0:00:00]} 59. b3 {[%emt 0:00:30]} Nd2 {[%emt 0:00:00]} 60. Rh8+ {[%emt 0:00:30]} Kd7 {[%emt 0:00:00]} 61. Rb8 {[%emt 0:00:30]} Kc7 {[%emt 0:00:00]} 62. Rh8 {[%emt 0:00:00]} Nxb3 {[%emt 0:00:00]} 63. Kf6 {[%emt 0:00:00]} Rd7 {[%emt 0:00:00]} 64. Ke5 {[%emt 0:00:00]} Re7+ {[%emt 0:00:00]} 65. Kf6 {[%emt 0:00:00]} Re4 {[%emt 0:00:00]} 66. Rh7+ {[%emt 0:00:30]} Kb8 {[%emt 0:00:00]} 0-1

[Event "Turkey IS Bank Super League 2017"]
[Site "Darica-Kocaeli"]
[Date "2017.07.27"]
[Round "2.28"]
[White "Atakisi, Umut"]
[Black "Yaran, Siar"]
[Result "1/2-1/2"]
[ECO "A53"]
[WhiteElo "2373"]
[BlackElo "2253"]
[Annotator "RC"]
[PlyCount "135"]
[EventType "team-tourn"]
[EventCountry "TUR"]
[SourceTitle "playchess.com"]
[Source "ChessBase"]
[SourceQuality "1"]
[TimeControl "40/5400+30:1800+30"]

1. Nf3 {[%emt 0:00:30]} Nf6 {[%emt 0:02:00]} 2. c4 {[%emt 0:00:30]} d6 {[%emt 0:03:30]} 3. d4 {[%emt 0:00:30]} Bf5 {[%emt 0:01:30]} 4. g3 {[%emt 0:02:30]} c6 {[%emt 0:00:30]} 5. Nc3 {[%emt 0:00:30]} h6 {[%emt 0:00:30]} 6. Bg2 {[%emt 0:00:30]} e6 {[%emt 0:00:00]} 7. O-O {[%emt 0:07:30]} Be7 {[%emt 0:00:00] [%clk 1:25]} 8. d5 {[%emt 0:16:30]} e5 {[%emt 0:01:30]} 9. Ne1 {[%emt 0:05:30]} O-O {[%emt 0:21:30]} 10. dxc6 {[%emt 0:03:30]} Nxc6 {[%emt 0:09:30]} 11. Nc2 {[%emt 0:04:30]} Qd7 {[%emt 0:13:30]} 12. b3 {[%emt 0:09:30]} Rab8 {[%emt 0:06:30]} 13. Ne3 {[%emt 0:03:30]} Be6 {[%emt 0:01:30]} 14. Ned5 {[%emt 0:01:30]} Bxd5 {[%emt 0:00:30]} 15. Nxd5 {[%emt 0:00:30]} b5 {[%emt 0:08:30]} 16. Nxe7+ {[%emt 0:07:30]} Nxe7 {[%emt 0:00:00]} 17. cxb5 {[%emt 0:04:30]} Rxb5 {[%emt 0:01:00]} 18. Ba3 {[%emt 0:00:30]} d5 {[%emt 0:03:30]} 19. Qd2 {[%emt 0:03:30]} Rd8 {[%emt 0:01:30]} 20. Rfd1 {[%emt 0:02:30]} d4 {[%emt 0:03:58]} 21. e3 {[%emt 0:07:02]} Nf5 {[%emt 0:05:07]} 22. e4 {[%emt 0:04:55]} Nd6 {[%emt 0:00:30]} 23. f3 {[%emt 0:00:00]} Rb6 {[%emt 0:02:55]} 24. Bf1 {[%emt 0:01:38]} Rc8 {[%emt 0:02:06]} 25. Qa5 {[%emt 0:01:42]} Nb5 {[%emt 0:00:32]} 26. Bb4 {[%emt 0:01:57]} Qb7 {[%emt 0:10:39]} 27. Rac1 {[%emt 0:00:30]} Nc3 {[%emt 0:00:31]} 28. Bxc3 {[%emt 0:00:43]} Rxc3 {[%emt 0:00:35]} 29. Rxc3 {[%emt 0:00:17]} dxc3 {[%emt 0:00:02]} 30. Qxe5 {[%emt 0:03:50]} Rc6 {[%emt 0:00:30]} 31. Qd4 {[%emt 0:02:21]} Nd7 {[%emt 0:00:35]} 32. Bc4 {[%emt 0:01:25]} Qb6 {[%emt 0:00:08]} 33. Qxb6 {[%emt 0:00:44]} Nxb6 {[%emt 0:00:11]} 34. Bd3 {[%emt 0:00:31]} a5 {[%emt 0:01:03]} 35. Kf2 {[%emt 0:00:40]} a4 {[%emt 0:01:03]} 36. Bb5 {[%emt 0:01:12]} axb3 {[%emt 0:00:23]} 37. axb3 {[%emt 0:00:28]} c2 {[%emt 0:00:01]} 38. Rc1 {[%emt 0:01:19]} Rc3 {[%emt 0:00:01]} 39. b4 {[%emt 0:01:02]} h5 {[%emt 0:00:58]} 40. Ke2 {[%emt 0:00:52]} Nc4 {[%emt 0:00:42]} 41. Bxc4 {[%emt 0:02:22]} Rxc4 {[%emt 0:03:30]} 42. h4 {[%emt 0:03:30]} g6 {[%emt 0:00:30]} 43. Ke3 {[%emt 0:03:30]} Kg7 {[%emt 0:00:30]} 44. b5 {[%emt 0:00:00]} Rb4 {[%emt 0:01:30]} 45. Rxc2 {[%emt 0:00:00]} Rxb5 {[%emt 0:00:00]} 46. Rc3 {[%emt 0:02:30]} Ra5 {[%emt 0:06:00]} 47. Rd3 {[%emt 0:02:30]} Rb5 {[%emt 0:02:31]} 48. f4 {[%emt 0:00:30]} Rb4 {[%emt 0:02:41]} 49. Kf3 {[%emt 0:03:37]} Ra4 {[%emt 0:00:21]} 50. Re3 {[%emt 0:00:46]} Kf6 {[%emt 0:00:30]} 51. Rd3 {[%emt 0:02:05]} Kg7 {[%emt 0:00:14]} 52. e5 {[%emt 0:00:59]} Kf8 {[%emt 0:03:28]} 53. g4 {[%emt 0:01:25]} hxg4+ {[%emt 0:00:05]} 54. Kxg4 {[%emt 0:00:04]} Ra1 {[%emt 0:03:21]} 55. f5 {[%emt 0:08:01]} gxf5+ {[%emt 0:02:44]} 56. Kxf5 {[%emt 0:01:36]} Rf1+ {[%emt 0:00:26]} 57. Kg4 {[%emt 0:00:30]} Re1 {[%emt 0:00:47]} 58. Kf4 {[%emt 0:00:24]} Rh1 {[%emt 0:00:54]} 59. Kg5 {[%emt 0:01:19]} Re1 {[%emt 0:00:42]} 60. Kh6 {[%emt 0:01:59]} Rxe5 {[%emt 0:00:54]} 61. h5 {[%emt 0:00:16]} Ke7 {[%emt 0:01:00]} 62. Rh3 {[%emt 0:00:46]} Kf6 {[%emt 0:04:57]} 63. Kh7 {[%emt 0:01:00]} Kg5 {[%emt 0:00:29]} 64. h6 {[%emt 0:01:04]} f5 {[%emt 0:01:39]} 65. Rg3+ {[%emt 0:00:28]} Kf6 {[%emt 0:00:24]} 66. Rg6+ {[%emt 0:00:58]} Kf7 {[%emt 0:00:30]} 67. Rg7+ {[%emt 0:00:00]} Kf6 {[%emt 0:00:02]} 68. Rg6+ {[%emt 0:00:12]} 1/2-1/2

[Event "Turkey IS Bank Super League 2017"]
[Site "Darica-Kocaeli"]
[Date "2017.07.27"]
[Round "2.29"]
[White "Isgandarova, Khayala"]
[Black "Ozturk, Kubra"]
[Result "1/2-1/2"]
[ECO "C95"]
[WhiteElo "2257"]
[BlackElo "2298"]
[Annotator "NA"]
[PlyCount "88"]
[EventType "team-tourn"]
[EventCountry "TUR"]
[SourceTitle "playchess.com"]
[Source "ChessBase"]
[SourceQuality "1"]
[TimeControl "40/5400+30:1800+30"]

1. e4 {[%emt 0:00:30]} e5 {[%emt 0:01:00]} 2. Nf3 {[%emt 0:00:30]} Nc6 {[%emt 0:00:30]} 3. Bb5 {[%emt 0:00:00]} a6 {[%emt 0:00:30]} 4. Ba4 {[%emt 0:00:00]} Nf6 {[%emt 0:00:00]} 5. O-O {[%emt 0:00:30]} b5 {[%emt 0:01:00]} 6. Bb3 {[%emt 0:00:30]} Be7 {[%emt 0:00:30]} 7. Re1 {[%emt 0:00:30]} d6 {[%emt 0:00:30]} 8. c3 {[%emt 0:00:00]} O-O {[%emt 0:00:00]} 9. h3 {[%emt 0:02:00]} Nb8 {[%emt 0:00:00]} 10. d4 {[%emt 0:00:30]} Nbd7 {[%emt 0:00:30]} 11. Nbd2 {[%emt 0:00:30]} Bb7 {[%emt 0:00:30]} 12. Bc2 {[%emt 0:00:30]} Re8 {[%emt 0:00:30]} 13. Nf1 {[%emt 0:00:30]} Bf8 {[%emt 0:03:30]} 14. Ng3 {[%emt 0:00:00]} g6 {[%emt 0:07:30] LiveBook: 2041 Games} 15. Bg5 $14 {[%emt 0:12:00] [%clk 1:19]} h6 {[%emt 0:09:30]} 16. Bd2 {[%emt 0:01:30]} Bg7 {[%emt 0:09:30]} 17. Nh2 {[%emt 0:13:30]} d5 {[%emt 0:08:30]} 18. exd5 {[%emt 0:13:30]} exd4 {[%emt 0:17:30]} 19. Rxe8+ {[%emt 0:11:30]} Qxe8 {[%emt 0:00:30]} 20. cxd4 {[%emt 0:01:30]} Bxd5 {[%emt 0:02:30]} 21. Bf4 {[%emt 0:05:30]} c5 {[%emt 0:10:30]} 22. Qd2 {[%emt 0:04:30]} h5 {[%emt 0:13:27]} 23. Bh6 {[%emt 0:07:30]} Bxh6 {[%emt 0:04:29]} 24. Qxh6 {[%emt 0:00:30]} cxd4 {[%emt 0:00:45]} 25. Nf3 {[%emt 0:12:34]} Bxf3 {[%emt 0:02:59]} 26. gxf3 {[%emt 0:00:03]} Ne5 {[%emt 0:05:04]} 27. Nf5 {[%emt 0:09:18]} Qf8 {[%emt 0:01:21]} 28. Qf4 {[%emt 0:00:23]} Re8 {[%emt 0:00:42]} 29. Nxd4 {[%emt 0:01:29]} Nd5 {[%emt 0:00:19]} 30. Qg3 {[%emt 0:01:41]} Qc5 {[%emt 0:00:42]} 31. Rd1 {[%emt 0:00:43]} Nb4 {[%emt 0:00:55]} 32. Bb3 {[%emt 0:00:30]} Rd8 {[%emt 0:00:00]} 33. f4 {[%emt 0:01:05]} Nc4 {[%emt 0:00:30]} 34. f5 {[%emt 0:00:51]} Rxd4 {[%emt 0:00:23]} 35. Qb8+ {[%emt 0:00:28]} Kh7 {[%emt 0:00:26]} 36. Rxd4 {[%emt 0:00:18]} Qxd4 {[%emt 0:00:35]} 37. Qf8 {[%emt 0:00:09]} Ne5 {[%emt 0:00:49]} 38. Bxf7 {[%emt 0:00:53]} Nf3+ {[%emt 0:00:10]} 39. Kh1 {[%emt 0:00:31]} Qd1+ {[%emt 0:00:22]} 40. Kg2 {[%emt 0:00:30]} Nh4+ {[%emt 0:30:30]} 41. Kh2 {[%emt 0:01:04]} Nf3+ {[%emt 0:00:00]} 42. Kg2 {[%emt 0:02:30]} Nh4+ {[%emt 0:00:00]} 43. Kh2 {[%emt 0:00:30]} Nf3+ {[%emt 0:00:00]} 44. Kg2 {[%emt 0:00:00]} Nh4+ {[%emt 0:00:00]} 1/2-1/2